{"text_format":"1","workbook":"xlsx","n_sheets":4,"sheets":["入力シート","様式4-1","様式4-1別紙2","様式4-1別紙2-2"],"not_rendered":{"charts":0,"images":0,"macros":1,"external_links":0,"defined_names":5,"comments":2,"pivot_tables":0},"unopened":[],"bounds":{"document_bytes":16777216,"sheet_cells":100000,"rows_first":2000,"rows_last":500,"rows_between":2000,"halvings":0,"cell_chars":16384,"cell_head_chars":4096},"cells_cut":0,"cells_raw":0,"read":"whole","date_system":"1900"}

{"sheet":"入力シート","index":0,"n_rows":53,"n_cols":30,"rows_kept":53,"cut":false,"hidden":false,"merged":[[40,8,40,12],[40,14,40,25],[8,14,9,24],[16,14,17,23],[14,14,15,23],[33,14,33,25],[37,8,37,12],[36,14,39,25],[29,8,29,12],[29,14,29,25],[26,14,28,25],[36,8,36,12],[31,14,31,25],[31,1,32,6],[0,1,2,8],[26,8,26,12],[27,8,27,12],[23,14,25,25],[6,8,6,12],[8,8,8,12],[12,8,12,12],[14,8,14,12],[18,8,18,12],[16,8,16,10],[20,8,20,12],[4,1,5,6],[9,1,9,6],[10,1,10,6],[42,14,44,25],[45,8,45,12],[45,14,47,25],[46,8,46,12],[48,8,48,12],[48,14,48,25]]}
[null,"地域公共交通バリア解消促進等事業(車両)入力シート"]
[null,null,null,null,null,null,null,null,null,"（着色部をご入力ください）"]
[]
[]
[null,"１．内示を受けた予算は令和5年度補正予算か、令和6年度当初予算か",null,null,null,null,null,"令和",5,"年度",null,null,null,null,"←令和5年度補正予算なら、「5」を、令和6年度当初予算なら「6」を入力下さい。"]
[]
[null,"１．交付申請書の提出年月日は",null,null,null,null,null,"提出日",null,null,null,null,null,null,"←交付申請書を提出する日付を入力下さい。"]
[]
[null,"２．氏名又は名称は",null,null,null,null,null,"氏名・名称",null,null,null,null,null,null,"←個人は住民票の氏名　法人は登記簿謄本の名称を入力下さい。\n　リース車両の場合は、リース会社の名称を入力してください。"]
[null,"　　（個人での届出：氏名"]
[null,"　　　法人での届出：法人名称を記入）"]
[]
[null,"３．法人の場合、代表者名は",null,null,null,null,null,null,null,null,null,null,null,null,"←リース車両の場合は、リース会社の代表者名を入力してください。"]
[]
[null,"５．申請者の住所は",null,null,null,null,null,"住所",null,null,null,null,null,null,"←個人は住民票の住所　法人は登記簿謄本の本店住所を入力下さい。\n　リース車両の場合は、リース会社の本社住所を入力してください。"]
[]
[null,"６．担当者名は",null,null,null,null,null,"担当者名"]
[]
[null,"７．担当者の電話番号は",null,null,null,null,null,"電話",null,null,null,null,null,null,"←携帯番号でも構いません。"]
[]
[null,"７．担当者のメールアドレスは",null,null,null,null,null,"メアド"]
[]
[]
[null,"８．導入する車両はリフト車かスロープ車か",null,null,null,null,null,null,null,"リフト車",{"$f":"IF(I24=\"\",\"〇\",\"\")","v":"〇"},"スロープ車",null,null,"←リフト車の場合、リフト車に〇をしてください。\n　リフト車に〇をすると、スロープ車の〇が消えます。\n　両方購入する場合、まずどちらかを選び、11にて残りの車両に関する情報を入力してください。",null,null,null,null,null,null,null,null,null,null,null,null,null,null,{"$f":"IF(I24=\"〇\",1,2)","v":2}]
[null,"    導入する車両は何両か",null,null,null,null,null,null,"車両数",null,"両"]
[]
[null,"９．８で導入する車両の金額は",null,null,null,null,null,"１台あたりの金額",10000000,null,null,null,null,"円","←車両本体価格を記載ください。\n　値引きや消費税が内税の場合には、その値引き額や消費税額を減額してください。\n　（２両以上車両があり、それぞれの金額が違う場合は、合計した金額を合計金額に\n　入力してください。その場合、１台あたりの金額の入力は不要です。）\n　なお、車両本体価格がリフト車：240万円、スロープ車：180万円以下の場合には、その車両は、14以降の設問にて入力してください。"]
[null,null,null,null,null,null,null,"合計金額",{"$f":"J25*I27","v":0},null,null,null,null,"円"]
[]
[null,"10．８で導入する車両の登録予定日は",null,null,null,null,null,"日付",null,null,null,null,null,null,"←複数台ある場合は、一番最後に車両を登録する予定日を記載してください。"]
[]
[null,"11．８で導入する車両以外に導入する車両はあるか",null,null,null,null,null,null,null,"〇","ある",null,"なし",null,"←ある場合、「ある」に〇をしてください。〇をしないと「なし」になります。",null,null,null,null,null,null,null,null,null,null,null,null,null,null,{"$f":"IF(J32=\"〇\",1,2)","v":1}]
[]
[null,"12．導入する車両はリフト車かスロープ車か",null,null,null,null,null,null,{"$f":"IF(J32=\"〇\",\"〇\",\"\")","v":"〇"},{"$f":"IF(AD32=2,\"\",IF(AD24=1,\"スロープ車\",\"リフト車\"))","v":"リフト車"},null,null,null,null,"←10で「ある」に〇をすると自動で反映されます。",null,null,null,null,null,null,null,null,null,null,null,null,null,null,{"$f":"IFERROR(LEFT(J34,LEN(J34)-1),\"\")","v":"リフト"}]
[null,"    導入する車両は何両か",null,null,null,null,null,null,"車両数",null,"両"]
[]
[null,"13.12で導入する車両の金額は",null,null,null,null,null,"１台あたりの金額",null,null,null,null,null,"円","←車両本体価格を記載ください。\n　値引きや消費税が内税の場合には、その値引き額や消費税額を減額してください。\n　（２両以上車両があり、それぞれの金額が違う場合は、合計した金額を合計金額に\n　入力してください。その場合、１台あたりの金額の入力は不要です。）\n　なお、車両本体価格がリフト車：240万円、スロープ車：180万円以下の場合には、その車両は、14以降の設問にて入力してください。"]
[null,null,null,null,null,null,null,"合計金額",{"$f":"J35*I37","v":0},null,null,null,null,"円"]
[null,null,null,null,null,null,null,null,null,null,null,null,null,null,null,null,null,null,null,null,null,null,null,null,null,null,null,null,null,{"$f":"IFERROR(LEFT(J39,LEN(J39)-1),\"\")","v":""}]
[]
[null,"14.12で導入する車両の登録予定日は",null,null,null,null,null,"日付",null,null,null,null,null,null,"←複数台ある場合は、一番最後に車両を登録する予定日を記載してください。"]
[]
[null,"15．導入する車両はリフト車かスロープ車か",null,null,null,null,null,null,null,null,null,null,null,null,"←リフト車の場合、リフト車に〇をしてください。\n　リフト車をしても、スロープ車の〇は消えません。\n　必ず、どちらかが〇になるように確認してください。",null,null,null,null,null,null,null,null,null,null,null,null,null,null,{"$f":"IF(I43=\"〇\",1,IF(K43=\"〇\",2,\"\"))","v":""}]
[null,"    導入する車両は何両か",null,null,null,null,null,null,"車両数",null,"両"]
[]
[null,"16.15で導入する車両の金額は",null,null,null,null,null,"１台あたりの金額",null,null,null,null,null,"円","←車両本体価格を記載ください。\n　値引きや消費税が内税の場合には、その値引き額や消費税額を減額してください。\n　（２両以上車両があり、それぞれの金額が違う場合は、合計した金額を合計金額に\n　入力してください。その場合、１台あたりの金額の入力は不要です。）"]
[null,null,null,null,null,null,null,"合計金額",{"$f":"J44*I46","v":0},null,null,null,null,"円"]
[]
[null,"17.15で導入する車両の登録予定日は",null,null,null,null,null,"日付",null,null,null,null,null,null,"←複数台ある場合は、一番最後に車両を登録する予定日を記載してください。"]
[]
[]
[null,"全ての項目を入力すると、様式４－１及び様式４－１別紙２に入力内容が反映されます。"]
[null,"様式４－１別紙２ー２については、入力内容が反映されておりませんので、別途入力ください。"]

{"sheet":"様式4-1","index":1,"n_rows":37,"n_cols":32,"rows_kept":37,"cut":false,"hidden":false,"merged":[[36,14,36,19],[36,20,36,31],[35,14,35,19],[35,20,35,31],[34,14,34,19],[34,20,34,31],[2,28,2,30],[3,27,3,31],[8,17,8,22],[8,23,9,31],[10,17,10,22],[10,23,11,31],[19,1,22,31],[15,7,15,8],[12,17,12,22],[12,23,12,31],[15,10,15,27]]}
[]
[null,"様式第4－1（日本産業規格Ａ列４番）"]
[null,null,null,null,null,null,null,null,null,null,null,null,null,null,null,null,null,null,null,null,null,null,null,null,null,null,null,"第",null,null,null,"号"]
[null,null,null,null,null,null,null,null,null,null,null,null,null,null,null,null,null,null,null,null,null,null,null,null,null,null,null,{"$f":"入力シート!I7","v":"00:00:00"}]
[]
[]
[null,"国土交通大臣　殿"]
[]
[null,null,null,null,null,null,null,null,null,null,null,null,null,null,null,null,null,"住 所 ",null,null,null,null,null,{"$f":"入力シート!I15","v":0}]
[]
[null,null,null,null,null,null,null,null,null,null,null,null,null,null,null,null,null,"氏名又は名称",null,null,null,null,null,{"$f":"入力シート!I9","v":0}]
[]
[null,null,null,null,null,null,null,null,null,null,null,null,null,null,null,null,null,"代表者",null,null,null,null,null,{"$f":"入力シート!I13","v":0}]
[]
[]
[null,null,null,null,null,null,null,"令和",null,{"$f":"入力シート!I5","v":5},"年度地域公共交通確保維持改善事業費補助金"]
[null,null,null,null,null,null,null,null,"（地域公共交通バリア解消促進等事業）交付申請書"]
[]
[]
[null,{"$f":"\"　令和\"&J16&\"年度地域公共交通確保維持改善事業費補助金（地域公共交通バリア解消促進等事業）金\"&'様式4-1別紙2'!L37&\"を交付されるよう、補助金等に係る予算の執行の適正化に関する法律（昭和30年法律第179号）第５条の規定により、別紙のとおり申請します。\"","v":"　令和5年度地域公共交通確保維持改善事業費補助金（地域公共交通バリア解消促進等事業）金0円を交付されるよう、補助金等に係る予算の執行の適正化に関する法律（昭和30年法律第179号）第５条の規定により、別紙のとおり申請します。"}]
[]
[]
[]
[]
[]
[]
[]
[]
[]
[]
[]
[]
[]
[]
[null,null,null,null,null,null,null,null,null,null,null,null,null,null,"担当者名：",null,null,null,null,null,{"$f":"入力シート!$I$17","v":0}]
[null,null,null,null,null,null,null,null,null,null,null,null,null,null,"連絡先（ＴＥＬ）：",null,null,null,null,null,{"$f":"入力シート!$I$19","v":0}]
[null,null,null,null,null,null,null,null,null,null,null,null,null,null,"（メールアドレス）：",null,null,null,null,null,{"$f":"入力シート!$I$21","v":0}]

{"sheet":"様式4-1別紙2","index":2,"n_rows":41,"n_cols":12,"rows_kept":41,"cut":false,"hidden":false,"merged":[[23,7,30,7],[23,8,30,8],[23,3,30,3],[17,5,18,5],[25,5,26,5],[15,6,22,6],[23,6,30,6],[7,6,14,6],[7,7,14,7],[7,8,14,8],[9,5,10,5],[15,1,22,1],[15,2,22,2],[15,3,22,3],[15,7,22,7],[15,8,22,8],[7,0,14,0],[15,0,22,0],[23,0,30,0],[36,1,36,5],[7,1,14,1],[7,2,14,2],[7,3,14,3],[23,1,30,1],[23,2,30,2],[1,0,1,8],[2,0,2,8],[5,1,6,1],[5,2,6,2],[5,3,6,3],[5,4,6,5],[5,6,6,6],[5,7,6,7],[5,8,6,8]]}
["様式第４－１ 別紙２"]
["（バス・タクシー車両、船舶の移動等円滑化、福祉タクシーの共同配車センターの整備、バリア解消に資する待合・乗継環境の向上、情報提供、鉄軌道駅の利用者の利便性向上に資する生活支援機能施設の整備を除く利用環境改善促進等事業に限る）"]
[{"$f":"\"令和\"&'様式4-1'!J16&\"年度:地域公共交通確保維持改善事業費補助金（地域公共交通バリア解消促進等事業）交付申請事業\"","v":"令和5年度:地域公共交通確保維持改善事業費補助金（地域公共交通バリア解消促進等事業）交付申請事業"}]
[null,"補助対象事業者名",{"$f":"'様式4-1'!X11","v":0}]
[null,null,null,null,null,null,null,null,"(単位：円)"]
[null,"補助対象事業の種別\n(補助対象経費の区分)","補助対象事業の名称","補助対象設備","補助対象事業の\n着手及び完了予定日",null,"補助対象経費","補助金額","備考"]
[]
[1,{"$f":"IF(D8=\"\",\"\",\"バリアフリー化設備等整備事業（タクシー車両の移動等円滑化に要する経費）\")","v":"バリアフリー化設備等整備事業（タクシー車両の移動等円滑化に要する経費）"},{"$f":"IF(D8=\"\",\"\",\"福祉タクシー導入事業\")","v":"福祉タクシー導入事業"},{"$f":"IF(入力シート!$AD$24=1,\"リフトを装備する福祉タクシー車両\",\"スロープを装備する福祉タクシー車両\")","v":"スロープを装備する福祉タクシー車両"},null,null,{"$f":"入力シート!I28","v":0},{"$f":"IF(D8=\"\",\"\",L8)","v":0},null,null,null,{"$f":"IF(D8=\"スロープを装備する福祉タクシー車両\",L10,L11)","v":0}]
[]
[null,null,null,null,{"$f":"IF(D8=\"\",\"\",\"着手\")","v":"着手"},{"$f":"IF(D8=\"\",\"\",\"交付決定次第\")","v":"交付決定次第"},null,null,null,null,null,{"$f":"MIN(ROUNDDOWN(G8/3,-3),600000*入力シート!J25)","v":0}]
[null,null,null,null,null,null,null,null,null,null,null,{"$f":"MIN(ROUNDDOWN(G8/3,-3),800000*入力シート!J25)","v":0}]
[]
[null,null,null,null,{"$f":"IF(D8=\"\",\"\",\"完了\")","v":"完了"},{"$f":"入力シート!$I$30","v":"00:00:00"}]
[]
[]
[2,{"$f":"IF(D16=\"\",\"\",\"バリアフリー化設備等整備事業（タクシー車両の移動等円滑化に要する経費）\")","v":"バリアフリー化設備等整備事業（タクシー車両の移動等円滑化に要する経費）"},{"$f":"IF(D16=\"\",\"\",\"福祉タクシー導入事業\")","v":"福祉タクシー導入事業"},{"$f":"IF(入力シート!$AD$32=2,\"\",IF(入力シート!$AD$32=1,入力シート!AD34&\"を装備する福祉タクシー車両\",\"\"))","v":"リフトを装備する福祉タクシー車両"},null,null,{"$f":"IF(D16=\"\",\"\",入力シート!I38)","v":0},{"$f":"IF(D16=\"\",\"\",L16)","v":0},null,null,null,{"$f":"IF(D16=\"スロープを装備する福祉タクシー車両\",L18,L19)","v":0}]
[]
[null,null,null,null,{"$f":"IF(D16=\"\",\"\",\"着手\")","v":"着手"},{"$f":"IF(D16=\"\",\"\",\"交付決定次第\")","v":"交付決定次第"},null,null,null,null,null,{"$f":"MIN(ROUNDDOWN(G16/3,-3),600000*入力シート!J35)","v":0}]
[null,null,null,null,null,null,null,null,null,null,null,{"$f":"MIN(ROUNDDOWN(G16/3,-3),800000*入力シート!J35)","v":0}]
[]
[null,null,null,null,{"$f":"IF(D16=\"\",\"\",\"完了\")","v":"完了"},{"$f":"IF(D16=\"\",\"\",入力シート!$I$41)","v":"00:00:00"}]
[]
[]
[3,{"$f":"IF(D24=\"\",\"\",\"バリアフリー化設備等整備事業（タクシー車両の移動等円滑化に要する経費）\")","v":""},{"$f":"IF(D24=\"\",\"\",\"福祉タクシー導入事業\")","v":""},{"$f":"IF(入力シート!AD43=\"\",\"\",IF(入力シート!$AD$43=1,\"リフトを装備する福祉タクシー車両\",\"スロープを装備する福祉タクシー車両\"))","v":""},null,null,{"$f":"IF(D24=\"\",\"\",入力シート!I47)","v":""},{"$f":"IF(D24=\"\",\"\",L24)","v":""},null,null,null,{"$f":"IF(D24=\"スロープを装備する福祉タクシー車両\",L26,L27)","v":{"$error":"#VALUE!"}}]
[]
[null,null,null,null,{"$f":"IF(D24=\"\",\"\",\"着手\")","v":""},{"$f":"IF(D24=\"\",\"\",\"交付決定次第\")","v":""},null,null,null,null,null,{"$f":"MIN(ROUNDDOWN(G24/3,-3),600000*入力シート!J44)","v":{"$error":"#VALUE!"}}]
[null,null,null,null,null,null,null,null,null,null,null,{"$f":"MIN(ROUNDDOWN(G24/3,-3),800000*入力シート!I47)","v":{"$error":"#VALUE!"}}]
[]
[null,null,null,null,{"$f":"IF(D24=\"\",\"\",\"完了\")","v":""},{"$f":"IF(D24=\"\",\"\",入力シート!I49)","v":""}]
[]
[]
[]
["･"]
["･"]
["･"]
[]
["計",{"$f":"SUM(C15,C20,C36)","v":0},null,null,null,null,{"$f":"SUM(G8,G16,G24)","v":0},{"$f":"SUM(H8,H16,H24)","v":0},null,null,null,{"$f":"TEXT(H37,\"#,##0円\")","v":"0円"}]
["（添付書類）"]
["(1)","生活交通確保維持改善計画又は生活交通改善事業計画の写し"]
["(2)","補助対象経費に係る見積書及び補助金額の算出基礎"]
["(3)","その他申請に必要な書類"]

{"sheet":"様式4-1別紙2-2","index":3,"n_rows":39,"n_cols":8,"rows_kept":39,"cut":false,"hidden":false,"merged":[[23,7,30,7],[7,0,14,0],[15,0,22,0],[23,0,30,0],[7,7,14,7],[15,1,22,1],[15,2,22,2],[15,3,22,3],[15,7,22,7],[36,1,36,2],[36,4,36,6],[7,1,14,1],[7,2,14,2],[7,3,14,3],[23,1,30,1],[23,2,30,2],[23,3,30,3],[2,0,2,7],[5,1,6,1],[5,2,6,2],[5,3,6,3],[5,4,6,5],[5,6,6,6],[5,7,6,7]]}
["様式第４－１ 別紙２－２"]
["（公共交通事業に供する車両・船舶を貸与する者が申請する場合は、様式第４－１別紙２に添付すること）"]
[]
["貸与する車両・船舶の状況"]
[]
[null,"使用者（公共交通事業者）名","車両・船舶の種別","両・隻数","貸与する期間",null,"有償・無償の別","備考"]
[]
[1]
[null,null,null,null,null,null,"（該当する項目を囲む）"]
[]
[null,null,null,null,null,null,"有償　　　無償"]
[]
[]
[]
[]
[2]
[null,null,null,null,null,null,"（該当する項目を囲む）"]
[]
[null,null,null,null,null,null,"有償　　　無償"]
[]
[]
[]
[]
[3]
[null,null,null,null,null,null,"（該当する項目を囲む）"]
[]
[null,null,null,null,null,null,"有償　　　無償"]
[]
[]
[]
[]
[]
["･"]
["･"]
["･"]
[]
["計",{"$f":"SUM(C15,C20,C36)","v":0}]
["（注）"]
["(1)","本様式において有償で貸与することとする車両・船舶については、貸与料金の算定根拠明細書を添付すること。"]